fUST/lending_fUST_20250927
["ID","MTS","AMOUNT","RATE_DAILY","PERIOD"]
[388002566,1758957038912,-151.0,0.00032928,7]
[388002567,1758957038922,-152.307021,0.00032928,7]
[388002568,1758957038931,-151.0,0.00032928,7]
[388002569,1758957038941,-151.0,0.00032928,7]
[388002570,1758957038951,-151.0,0.00032928,7]
[388002571,1758957038960,-151.0,0.00032928,7]
[388002572,1758957038969,-151.0,0.00032928,7]
[388002573,1758957038978,-151.0,0.00032928,7]
[388002574,1758957038988,-151.0,0.00032928,7]
[388002575,1758957038997,-151.0,0.00032928,7]
[388002576,1758957039006,-151.0,0.00032928,7]
[388002577,1758957039016,-151.0,0.00032928,7]
[388002578,1758957039025,-151.0,0.00032928,7]
[388002579,1758957039034,-151.470752,0.00032928,7]
[388002580,1758957039044,-151.0,0.00032928,7]
[388002581,1758957039053,-151.0,0.00032928,7]
[388002582,1758957039063,-151.0,0.00032928,7]
[388002583,1758957039073,-151.0,0.00032929,7]
[388002584,1758957039083,-151.907981,0.00032929,7]
[388002585,1758957039093,-151.857887,0.00032929,7]
[388002586,1758957039102,-151.0,0.00032929,7]
[388002587,1758957039111,-151.0,0.00032929,7]
[388002588,1758957039119,-151.958453,0.00032929,7]
[388002589,1758957039127,-151.850083,0.00032929,7]
[388002590,1758957039136,-151.0,0.00032929,7]
[388002591,1758957039145,-165.572928,0.00032929,7]
[388002592,1758957039153,-151.0,0.00032929,7]
[388002593,1758957039161,-151.0,0.00032929,7]
[388002594,1758957039169,-151.0,0.00032929,7]
[388002595,1758957039178,-166.441605,0.00032929,7]
[388002596,1758957039186,-151.0,0.00032929,7]
[388002597,1758957039196,-151.0,0.00032929,7]
[388002598,1758957039204,-151.0,0.00032929,7]
[388002599,1758957039212,-917.932423,0.00032929,7]
[388002600,1758957039221,-917.932423,0.00032929,7]
[388002601,1758957039230,-917.932423,0.00032929,7]
[388002602,1758957039238,-917.932423,0.00032929,7]
[388002603,1758957039246,-151.849616,0.00032929,7]
[388002604,1758957039255,-151.0,0.00032929,7]
[388002605,1758957039263,-151.0,0.00032929,7]
[388002606,1758957039272,-155.243799,0.00032929,7]
[388002607,1758957039280,-151.0,0.00032929,7]
[388002608,1758957039289,-151.0,0.00032929,7]
[388002609,1758957039298,-151.0,0.00032929,7]
[388002610,1758957039308,-151.0,0.00032929,7]
[388002611,1758957039317,-293.61783,0.00032929,7]
[388002612,1758957039326,-293.61783,0.00032929,7]
[388002613,1758957039335,-293.61783,0.00032929,7]
[388002614,1758957039344,-293.61783,0.00032929,7]
[388002615,1758957039354,-152.980024,0.0003293,7]
[388002616,1758957039365,-152.595957,0.0003293,7]
[388002617,1758957039379,-152.113319,0.0003293,7]
[388002618,1758957039390,-151.0,0.0003293,7]
[388002619,1758957039409,-154.976598,0.0003293,7]
[388002620,1758957039422,-151.0,0.0003293,7]
[388002622,1758957039432,-151.0,0.0003293,7]
[388002623,1758957039442,-151.0,0.0003293,7]
[388002624,1758957039452,-151.0,0.0003293,7]
[388002625,1758957039462,-151.0,0.0003293,7]
[388002626,1758957039472,-151.0,0.0003293,7]
[388002627,1758957039481,-151.0,0.0003293,7]
[388002628,1758957039491,-654.106733,0.0003293,7]
[388002629,1758957039500,-151.0,0.0003293,7]
[388002630,1758957039510,-654.106733,0.0003293,7]
[388002632,1758957039520,-151.0,0.0003293,7]
[388002633,1758957039536,-654.106733,0.0003293,7]
[388002634,1758957039545,-151.0,0.0003293,7]
[388002635,1758957039554,-654.106733,0.0003293,7]
[388002636,1758957039563,-151.0,0.0003293,7]
[388002637,1758957039572,-151.0,0.0003293,7]
[388002638,1758957039584,-151.0,0.0003293,7]
[388002639,1758957039594,-151.0,0.0003293,7]
[388002640,1758957039603,-151.0,0.0003293,7]
[388002641,1758957039611,-155.016628,0.0003293,7]
[388002642,1758957039620,-155.016628,0.0003293,7]
[388002643,1758957039629,-155.016628,0.0003293,7]
[388002644,1758957039638,-155.016628,0.0003293,7]
[388002645,1758957039647,-151.0,0.0003293,7]
[388002646,1758957039655,-151.0,0.0003293,7]
[388002647,1758957039663,-151.0,0.0003293,7]
[388002648,1758957039673,-151.0,0.0003293,7]
[388002649,1758957039682,-238.092089,0.0003293,7]
[388002650,1758957039690,-151.0,0.0003293,7]
[388002651,1758957039699,-186.088724,0.0003293,7]
[388002652,1758957039709,-238.092089,0.0003293,7]
[388002653,1758957039719,-186.088724,0.0003293,7]
[388002655,1758957039728,-238.092089,0.0003293,7]
[388002657,1758957039738,-238.092089,0.0003293,7]
[388002659,1758957039747,-186.088724,0.0003293,7]
[388002661,1758957039756,-246.94514,0.0003293,7]
[388002663,1758957039765,-186.088724,0.0003293,7]
[388002665,1758957039775,-246.94514,0.0003293,7]
[388002667,1758957039784,-246.94514,0.0003293,7]
[388002669,1758957039796,-246.94514,0.0003293,7]
[388002671,1758957039806,-151.984401,0.0003293,7]
[388002673,1758957039814,-160.65649,0.0003293,7]
[388002675,1758957039823,-152.575275,0.0003293,7]
[388002677,1758957039832,-1006.732175,0.0003293,7]
[388002679,1758957039841,-1006.732175,0.0003293,7]
[388002681,1758957039851,-1006.732175,0.0003293,7]
[388002683,1758957039860,-1006.732175,0.0003293,7]
[388002685,1758957039870,-159.229884,0.0003293,7]
[388002687,1758957039879,-152.355237,0.0003293,7]
[388002689,1758957039888,-151.0,0.0003293,7]
[388002691,1758957039898,-151.0,0.0003293,7]
[388002693,1758957039907,-151.0,0.0003293,7]
[388002695,1758957039917,-271.792672,0.0003293,7]
[388002697,1758957039926,-151.0,0.0003293,7]
[388002699,1758957039935,-151.0,0.0003293,7]
[388002701,1758957039945,-151.0,0.0003293,7]
[388002703,1758957039954,-152.663969,0.0003293,7]
[388002705,1758957039964,-152.328891,0.0003293,7]
[388002707,1758957039974,-151.334355,0.0003293,7]
[388002709,1758957039987,-151.0,0.0003293,7]
[388002711,1758957039997,-151.0,0.0003293,7]
[388002713,1758957040007,-151.0,0.0003293,7]
[388002715,1758957040018,-4468.88153356,0.0003293,3]
[388002717,1758957040027,-878107.14925167,0.0003293,20]
[388002744,1758957040252,-4654.40136382,0.0003293,20]
[388002746,1758957040263,-1079.6678448,0.0003293,20]
[388002748,1758957040274,-423.79166931,0.0003293,20]
[388002750,1758957040285,-469.13541551,0.0003293,20]
[388002751,1758957040495,-5901.8212943,0.0003293,20]
[388002754,1758957040507,-1909.83181807,0.0003293,20]
[388002756,1758957040519,-433.33155169,0.0003293,20]
[388002972,1758957043028,-277.16578434,0.00032823,120]
[388002973,1758957043041,-202.83421566,0.00032823,120]
[388002974,1758957043050,-170.505373,0.0003293,7]
[388002976,1758957043060,-151.0,0.0003293,7]
[388002978,1758957043070,-170.505373,0.0003293,7]
[388002979,1758957043080,-151.0,0.0003293,7]
[388002980,1758957043089,-412.37430855,0.0003293,20]
[388002981,1758957043101,-289.54641168,0.0003293,20]
[388002982,1758957043113,-36557.70290373,0.0003293,20]
[388002983,1758957043143,-1611.63524533,0.0003293,20]
[388002998,1758957046556,-170.505373,0.0003293,7]
[388002999,1758957046566,-151.0,0.0003293,7]
[388003000,1758957046576,-251.492512,0.0003293,7]
[388003001,1758957046586,-170.505373,0.0003293,7]
[388003002,1758957046595,-151.0,0.0003293,7]
[388003003,1758957046605,-151.0,0.0003293,7]
[388003004,1758957046614,-105.67386276,0.0003293,20]
[388003005,1758957116876,186.0,9e-07,2]
[388003006,1758957210274,-208.02593212,0.0003293,60]
[388003009,1758957413760,300.0,0.00024,2]
[388003010,1758957426531,227.33182254,0.00025205,14]
[388003011,1758957456696,822.26680777,0.00025205,14]
[388003012,1758957456722,4177.73319223,0.00025205,14]
[388003013,1758957464627,72.60743322,0.00025205,2]
[388003014,1758957464651,444.53145063,0.00025205,2]
[388003015,1758957472866,1540.21399391,0.00025205,2]
[388003016,1758957480858,1595.60462459,0.00025205,2]
[388003017,1758957489139,2650.04545914,0.00025205,2]
[388003018,1758957497164,1219.49177716,0.00025205,2]
[388003019,1758957513458,2550.12269457,0.00025205,2]
[388003020,1758957513483,1096.43892429,0.00025205,2]
[388003021,1758957536617,3672.78069394,0.00025205,2]
[388003022,1758957537714,171.0,0.00023479,10]
[388003023,1758957544605,455.69032331,0.00025205,2]
[388003024,1758957545063,3574.0,0.0002487,7]
[388003025,1758957552770,1030.10005846,0.00025205,2]
[388003026,1758957552795,2372.05658252,0.00025205,2]
[388003027,1758957560658,5000.0,0.00025205,2]
[388003028,1758957576115,2627.95341748,0.00025205,2]
[388003029,1758957576140,2372.04658252,0.00025205,2]
[388003030,1758957584146,696.24141981,0.00025205,2]
[388003031,1758957592481,514.89525663,0.00025205,2]
[388003032,1758957600714,4153.49166886,0.00025205,2]
[388003033,1758957616158,514.89525663,0.00025205,2]
[388003034,1758957624709,1054.10988817,0.00025205,2]
[388003035,1758957632895,694.32992738,0.00025205,2]
[388003036,1758957632919,1927.18824954,0.00025205,2]
[388003037,1758957641382,846.79478435,0.00025205,2]
[388003038,1758957644056,160.0,0.00025205,2]
[388003039,1758957656808,2137.83602166,0.00025205,2]
[388003040,1758957672808,754.86808311,0.00025205,2]
[388003041,1758957680869,1284.61516317,0.00025205,2]
[388003043,1758957696147,581.12108543,0.00025205,2]
[388003044,1758957740898,302.42545213,0.00025079,14]
[388003045,1758957816518,-423.9183814,0.000253,2]
[388003046,1758957818450,-154.523437,0.00027397,30]
[388003047,1758957904558,-285.95,0.0002521,10]
[388003048,1758957904591,-377.28654181,0.00025219,2]
[388003049,1758957904623,-300.0,0.00025219,2]
[388003050,1758957904655,-480.0,0.00025219,2]
[388003051,1758957905926,-4382.35745154,0.0002522,2]
[388003052,1758957905946,-10000.01,0.0002522,2]
[388003053,1758957905962,-10000.01,0.0002522,2]
[388003054,1758957905987,-10000.01,0.0002522,2]
[388003055,1758957906023,-10000.01,0.0002522,2]
[388003056,1758957914578,-380.79218508,0.000252,2]
[388003057,1758957917691,5000.0,0.00025205,2]
[388003058,1758957924581,-209.65,0.00025219,2]
[388003059,1758957924616,-500.0,0.00025219,2]
[388003060,1758957924650,-500.0,0.00025219,2]
[388003061,1758957924687,-398.73001548,0.00025219,2]
[388003062,1758957924721,-500.0,0.00025219,2]
[388003063,1758957924753,-500.0,0.00025219,2]
[388003064,1758957924785,-590.46305356,0.00025219,2]
[388003065,1758957925115,-8602.33386192,0.0002522,2]
[388003066,1758957925145,-10000.01,0.0002522,2]
[388003067,1758957925165,-10000.01,0.0002522,2]
[388003068,1758957925262,-10000.01,0.0002522,2]
[388003069,1758957925402,-10000.01,0.0002522,2]
[388003070,1758957925515,-10000.01,0.0002522,2]
[388003071,1758957925683,-10000.01,0.0002522,2]
[388003072,1758957925846,-10000.01,0.0002522,2]
[388003073,1758957926281,-10000.01,0.0002522,2]
[388003074,1758957926341,4238.42562984,0.00025205,2]
[388003075,1758957926365,761.57437016,0.00025205,2]
[388003076,1758957941954,5000.0,0.00025205,2]
[388003077,1758957944403,-0.01,0.0002522,2]
[388003078,1758957944607,-10000.01,0.0002522,2]
[388003079,1758957944743,-10000.01,0.0002522,2]
[388003080,1758957944899,-10000.01,0.0002522,2]
[388003081,1758957945045,-10000.01,0.0002522,2]
[388003082,1758957945190,-10000.01,0.0002522,2]
[388003083,1758957945305,-10000.01,0.0002522,2]
[388003084,1758957945441,-10000.01,0.0002522,2]
[388003085,1758957945709,-10000.01,0.0002522,2]
[388003086,1758957945741,-10000.01,0.0002522,2]
[388003087,1758957955178,-5000.0,0.00025205,2]
[388003088,1758957958737,0.01,0.00025205,2]
[388003089,1758957958769,4999.99,0.00025205,2]
[388003090,1758957964674,-245.0,0.00025219,2]
[388003091,1758957964748,-4510.01,0.0002522,2]
[388003092,1758957964919,-10000.01,0.0002522,2]
[388003093,1758957965060,-10000.01,0.0002522,2]
[388003094,1758957965193,-10000.01,0.0002522,2]
[388003095,1758957965308,-10000.01,0.0002522,2]
[388003096,1758957965452,-10000.01,0.0002522,2]
[388003097,1758957965585,-10000.01,0.0002522,2]
[388003098,1758957966874,5000.0,0.00025205,2]
[388003099,1758957975452,5000.0,0.00024953,13]
[388003100,1758957983393,5000.0,0.00025205,2]
[388003101,1758957994706,-5000.0,0.00025205,2]
[388003102,1758957999705,0.01,0.00025205,2]
[388003103,1758957999728,4999.99,0.00025205,2]
[388003104,1758958004698,-0.02,0.0002522,2]
[388003105,1758958014686,-3448.4048035,0.00025205,2]
[388003106,1758958015874,3103.200393,0.00025205,2]
[388003107,1758958024584,-1896.799607,0.00025205,2]
[388003108,1758958024702,5000.0,0.00024953,13]
[388003109,1758958034751,-1896.809607,0.0002522,2]
[388003110,1758958037135,-6514.12175613,0.0002522,2]
[388003113,1758958069497,12573.89720763,0.00018,2]
[388003115,1758958073453,9077.29220149,0.00018,2]
[388003116,1758958094133,1077.02740374,0.000125,2]
[388003117,1758958095962,7738.67817746,0.00018,2]
[388003119,1758958114988,17001.12738309,0.00015,2]
[388003122,1758958116890,1000.0,0.0001,2]
[388003123,1758958117445,467.75208667,0.00018,2]
[388003125,1758958120661,212.77725852,0.00016,2]
[388003126,1758958153149,-5370.27309095,0.0002,2]
[388003127,1758958153170,-1310.0001398,0.000203,2]
[388003128,1758958153190,-1370.12795388,0.0002061,2]
[388003129,1758958153210,-252.66510701,0.000209,2]
[388003130,1758958153230,-517.88366444,0.000209,2]
[388003131,1758958153250,-273.10067795,0.00021,2]
[388003132,1758958153269,-2380.70115148,0.000215,2]
[388003133,1758958153289,-245.42576699,0.00024456,13]
[388003134,1758958156109,-1415.06958011,0.00024456,13]
[388003135,1758958156135,-663.95392898,0.000245,2]
[388003136,1758958156161,-5000.0,0.00024703,13]
[388003137,1758958156184,-5000.0,0.00024953,13]
[388003138,1758958156206,-10739.97527022,0.00025,3]
[388003139,1758958156227,-421.69227282,0.0002512,4]
[388003140,1758958156248,-4093.06732341,0.0002522,2]
[388003141,1758958156270,-6642.08496835,0.000258,2]
[388003142,1758958156292,-273.9077218,0.0002585,2]
[388003143,1758958156315,-161.0,0.00026,5]
[388003144,1758958156337,-9590.16354753,0.0002698,2]
[388003145,1758958156358,-100000.0,0.0002699,2]
[388003146,1758958156380,-57540.9812852,0.0002721,2]
[388003147,1758958156403,-212.19537718,0.0002721,2]
[388003148,1758958156425,-300000.0,0.0002722,2]
[388003149,1758958156448,-500.0,0.00027273,2]
[388003150,1758958156470,-500.0,0.00027273,2]
[388003151,1758958156491,-500.0,0.00027273,2]
[388003152,1758958156513,-323.78510918,0.00027273,2]
[388003153,1758958156534,-500.0,0.00027273,2]
[388003154,1758958156555,-500.0,0.00027273,2]
[388003155,1758958156577,-500.0,0.00027273,2]
[388003156,1758958156598,-341.69060754,0.00027273,2]
[388003157,1758958156619,-500.68859255,0.00027273,2]
[388003158,1758958156640,-501.68741839,0.00027273,2]
[388003159,1758958156661,-500.0,0.00027273,2]
[388003160,1758958156682,-500.0,0.00027273,2]
[388003161,1758958156705,-501.0593796,0.00027273,2]
[388003162,1758958156726,-503.38082994,0.00027273,2]
[388003163,1758958156748,-500.0,0.00027273,2]
[388003164,1758958156769,-500.0,0.00027273,2]
[388003165,1758958156790,-500.0,0.00027273,2]
[388003166,1758958156811,-500.0,0.00027273,2]
[388003167,1758958156833,-500.0,0.00027273,2]
[388003168,1758958156854,-500.54642425,0.00027273,2]
[388003169,1758958156876,-500.0,0.00027273,2]
[388003170,1758958156897,-2677.12263921,0.00027297,2]
[388003171,1758958156918,-160.0,0.000273,2]
[388003172,1758958156939,-1845.476563,0.00027397,30]
[388003173,1758958156959,-502.35087601,0.00027821,5]
[388003174,1758958156983,-502.74134062,0.00027821,5]
[388003175,1758958157003,-509.65861283,0.00027821,5]
[388003176,1758958157023,-503.28480118,0.00027821,5]
[388003177,1758958157044,-502.88405209,0.00027821,5]
[388003178,1758958157066,-502.71932361,0.00027821,5]
[388003179,1758958157090,-1003.61315677,0.00027821,5]
[388003180,1758958157112,-1000.0,0.00027821,5]
[388003181,1758958157132,-1002.20057965,0.00027821,3]
[388003182,1758958157153,-1000.0,0.00027821,5]
[388003183,1758958157174,-1000.0,0.00027821,5]
[388003184,1758958157195,-1000.87936754,0.00027821,5]
[388003185,1758958157215,-260.0,0.00027848,2]
[388003186,1758958157235,-1500.0,0.00028368,5]
[388003187,1758958157256,-1500.0,0.00028368,5]
[388003188,1758958157277,-229.08802582,0.00028396,2]
[388003189,1758958157299,-2000.0,0.00028916,5]
[388003190,1758958157319,-2000.0,0.00028916,5]
[388003191,1758958157339,-357.0437385,0.00028942,5]
[388003192,1758958157359,-274.97301225,0.00028942,5]
[388003193,1758958157380,-228.81988074,0.00028942,5]
[388003194,1758958157401,-500.0,0.00028942,5]
[388003195,1758958157422,-500.0,0.00028942,5]
[388003196,1758958157443,-504.3794244,0.00028942,5]
[388003197,1758958157464,-500.7182875,0.00028942,5]
[388003198,1758958157485,-161.42545498,0.00028942,5]
[388003199,1758958157506,-500.0,0.00028942,5]
[388003200,1758958157527,-500.0,0.00028942,5]
[388003201,1758958157548,-500.0,0.00028942,5]
[388003202,1758958157568,-500.0,0.00028942,5]
[388003203,1758958157590,-218.84876029,0.00029,3]
[388003204,1758958157611,-200.54931973,0.00029157,2]
[388003205,1758958157633,-57540.9812852,0.0002943,2]
[388003206,1758958157654,-212.19537718,0.0002943,2]
[388003207,1758958157676,-95581.33980421,0.0002944,2]
[388003208,1758958159018,688.4496729,0.00024657,2]
[388003209,1758958172102,-5000.0,0.00029146,2]
[388003210,1758958172125,-9193.52094524,0.0002944,2]
[388003211,1758958196075,5000.0,0.00024953,13]
[388003212,1758958204089,500.0,0.00027273,2]
[388003213,1758958204117,514.45079761,0.00027273,2]
[388003214,1758958204146,1000.01873555,0.00027821,2]
[388003215,1758958206757,1000.0,0.00027204,2]
[388003216,1758958216308,250.0,0.00027204,2]
[388003217,1758958218940,5000.0,0.00024953,13]
[388003221,1758958230566,250.0,0.00027204,2]
[388003222,1758958231322,250.0,0.00027204,2]
[388003242,1758958232006,250.0,0.00027204,2]
[388003258,1758958232154,-5000.0,0.00029146,2]
[388003261,1758958232169,-370.08,0.0002943,3]
[388003263,1758958232178,-185.04,0.0002943,3]
[388003265,1758958232187,-555.16,0.0002943,3]
[388003266,1758958232197,-558.018975,0.0002944,2]
[388003269,1758958232208,-22666.09148937,0.0002944,2]
[388003271,1758958232219,-5000.0,0.0002944,2]
[388003335,1758958232813,250.0,0.00027204,2]
[388003787,1758958238283,-991.56831074,0.0002944,2]
[388003789,1758958238295,-683.88842277,0.0002944,2]
[388003792,1758958238307,-1058.23592004,0.0002944,2]
[388003794,1758958238318,-435.0,0.0002944,2]
[388003804,1758958238416,-117470.33613263,0.0002944,2]
[388003806,1758958238425,-1510.2448307,0.00029464,5]
[388003808,1758958238435,-2002.65583211,0.00029464,5]
[388003809,1758958238444,-500.0,0.00029473,5]
[388003810,1758958238453,-501.37962426,0.0002949,5]
[388003812,1758958238462,-1000.0,0.00030021,5]
[388003814,1758958238472,-2677.12263921,0.00030064,2]
[388003815,1758958238481,-1816.44,0.00030137,60]
[388003817,1758958238491,-338.57456123,0.00030684,2]
[388003818,1758958238500,-740.16,0.000308,3]
[388003819,1758958238510,-370.08,0.000308,3]
[388003820,1758958238519,-236.79583,0.00030943,2]
[388003821,1758958238529,-282.34131,0.00030991,2]
[388003822,1758958238539,-1558.988,0.00031136,120]
[388003823,1758958238548,-9590.16354753,0.00031426,2]
[388003824,1758958238557,-601.79477399,0.00031436,5]
[388003825,1758958238567,-500.0,0.00031436,5]
[388003826,1758958238577,-500.0,0.00031436,5]
[388003827,1758958238586,-157.91805218,0.00031554,5]
[388003828,1758958238595,-500.60119108,0.00031554,5]
[388003829,1758958238605,-501.0705587,0.00031554,5]
[388003830,1758958238614,-501.19320826,0.00031554,5]
[388003831,1758958238623,-501.11267338,0.00031554,5]
[388003832,1758958238633,-501.49119954,0.00031554,5]
[388003833,1758958238642,-500.0,0.00031554,5]
[388003834,1758958238651,-501.19887383,0.00031554,5]
[388003835,1758958238660,-500.0,0.00031554,5]
[388003836,1758958238670,-503.78618329,0.00031554,5]
[388003837,1758958238679,-500.59058122,0.00031554,5]
[388003838,1758958238688,-501.72847745,0.00031554,5]
[388003839,1758958238698,-500.49537703,0.00031554,5]
[388003840,1758958238707,-296.8821746,0.00031743,2]
[388003841,1758958238716,-198.216103,0.00031814,60]
[388003842,1758958238726,-506.21562887,0.00031984,5]
[388003843,1758958238735,-1000.0,0.00031984,5]
[388003844,1758958238744,-168.0,0.00032035,2]
[388003845,1758958238754,-160.39805331,0.00032069,30]
[388003846,1758958238763,-1006.27012067,0.00032102,5]
[388003847,1758958238773,-1000.0,0.00032102,5]
[388003848,1758958238782,-500.0,0.00032113,5]
[388003849,1758958238792,-500.0,0.00032114,5]
[388003850,1758958238801,-500.0,0.00032114,5]
[388003851,1758958238811,-503.5391158,0.00032114,5]
[388003852,1758958238820,-168.0,0.00032183,2]
[388003853,1758958238829,-500.0,0.00032387,5]
[388003854,1758958238838,-233.33187529,0.00032532,5]
[388003855,1758958238847,-2860.8719163,0.00032568,2]
[388003856,1758958238857,-1500.0,0.0003265,5]
[388003857,1758958238867,-500.0,0.00032661,5]
[388003858,1758958238876,-1113.83341633,0.00032661,5]
[388003859,1758958238886,-1000.0,0.00032661,5]
[388003860,1758958238895,-282.02982863,0.00032714,2]
[388003861,1758958238905,-341.56395499,0.00032795,2]
[388003862,1758958238914,-480.0,0.00032798,120]
[388003863,1758958238923,-1000.0,0.00032798,7]
[388003864,1758958238933,-386.55541333,0.00032822,2]
[388003865,1758958238943,-176.73301862,0.00032831,2]
[388003866,1758958238952,-2677.12263921,0.00032831,2]
[388003867,1758958238962,-767.09248,0.00032877,2]
[388003868,1758958238971,-150.0,0.0003288,2]
[388003869,1758958238980,-170.61890823,0.0003288,2]
[388003870,1758958238990,-979.0,0.00032886,2]
[388003871,1758958238999,-2161.0,0.00032886,2]
[388003872,1758958239009,-635.0,0.00032886,2]
[388003873,1758958239019,-410.0,0.00032886,2]
[388003874,1758958239028,-151.0,0.000329,12]
[388003875,1758958239038,-9590.16354753,0.00032922,2]
[388003876,1758958239047,-4468.88153356,0.0003293,3]
[388003877,1758958239056,-732005.57167764,0.0003293,20]
[388003878,1758958239068,-1567.96624962,0.0003293,20]
[388003908,1758958240288,-9177.05099164,0.0003293,20]
[388003983,1758958241506,5000.0,0.00024953,13]
[388004006,1758958243346,-500.0,0.00032661,5]
[388004008,1758958243355,-143.010746,0.00032802,2]
[388004026,1758958249619,5000.0,0.00024953,13]
[388004027,1758958257582,182.5258603,0.00024953,13]
[388004028,1758958265624,1453.51924801,0.00024953,13]
[388004029,1758958265647,1353.84756012,0.00024953,13]
[388004030,1758958265671,2192.63319187,0.00024953,13]
[388004031,1758958273744,5000.0,0.00024953,13]
[388004032,1758958286818,153.0,9e-07,2]
[388004033,1758958288545,153.0,9e-07,2]
[388004034,1758958289704,153.0,9e-07,2]
[388004035,1758958289768,3817.4627981,0.00024953,13]
[388004036,1758958290819,153.0,9e-07,2]
[388004037,1758958340435,167.19295,0.00015297,2]
[388004040,1758958365500,300.0,0.000137,2]
[388004041,1758958376940,300.0,0.000137,2]
[388004046,1758958388288,300.0,0.000137,2]
[388004047,1758958423842,-150.0,0.00024,2]
[388004048,1758958424803,-163.18138539,0.00032,120]
[388004049,1758958424828,-3.31209761,0.0003293,120]
[388004050,1758958425540,-271.9183814,0.00024703,13]
[388004052,1758958497817,417.15472785,0.00025,30]
[388004053,1758958498214,417.15472785,0.00026,60]
[388004054,1758958522572,3754.39255065,0.00025,30]
[388004055,1758958655455,-1446.514984,0.00022601,2]
[388004056,1758958656285,5692.6778979,0.00022483,2]
[388004057,1758958665532,-300.0,0.00022852,2]
[388004058,1758958665563,-1200.0,0.00022852,2]
[388004059,1758958665656,-1307.3321021,0.00022853,2]
[388004060,1758958665804,-10000.01,0.00022853,2]
[388004061,1758958665930,-561.3884869,0.00022853,2]
[388004062,1758958665960,-1415.06958011,0.0002319,13]
[388004063,1758958665991,-1047.09386598,0.00023424,13]
[388004064,1758958666047,-3952.90613402,0.00023424,13]
[388004065,1758958666088,-500.0,0.00023659,2]
[388004066,1758958666119,-500.0,0.00023659,2]
[388004067,1758958666153,-500.0,0.00023659,2]
[388004068,1758958666184,-500.0,0.00023659,2]
[388004069,1758958666213,-500.0,0.00023659,2]
[388004070,1758958666244,-500.0,0.00023659,2]
[388004071,1758958666274,-500.0,0.00023659,2]
[388004072,1758958666304,-500.0,0.00023659,2]
[388004073,1758958666337,-357.12998002,0.00023659,2]
[388004074,1758958666367,-500.0,0.00023659,2]
[388004075,1758958666729,-500.0,0.00023659,2]
[388004076,1758958666761,-500.0,0.00023659,2]
[388004077,1758958666791,-500.0,0.00023659,2]
[388004078,1758958666823,-500.0,0.00023659,2]
[388004079,1758958666853,-206.90683728,0.00023659,2]
[388004080,1758958666883,-500.0,0.00023659,2]
[388004081,1758958666915,-500.0,0.00023659,2]
[388004082,1758958666944,-182.35427353,0.00023659,2]
[388004083,1758958666976,-500.0,0.00023659,2]
[388004084,1758958667007,-511.62669538,0.00023659,2]
[388004085,1758958667040,-500.0,0.00023659,2]
[388004086,1758958667150,-500.0,0.00023659,2]
[388004087,1758958667182,-500.0,0.00023659,2]
[388004088,1758958667214,-500.0,0.00023659,2]
[388004089,1758958667246,-500.0,0.00023659,2]
[388004090,1758958667278,-500.0,0.00023659,2]
[388004091,1758958667310,-369.80547536,0.00023659,2]
[388004092,1758958667347,-500.0,0.00023659,2]
[388004093,1758958667380,-500.0,0.00023659,2]
[388004094,1758958667411,-500.0,0.00023659,2]
[388004095,1758958667441,-406.74673741,0.00023659,2]
[388004096,1758958667534,-500.0,0.00023659,2]
[388004097,1758958667563,-500.0,0.00023659,2]
[388004098,1758958667594,-500.0,0.00023659,2]